bitfinex/quotes_ETHUSD_20250815
["timestamp","ask_amount","ask_price","bid_price","bid_amount"]
[1755274622126,5.482,4384.2,4381.6,3.55]
[1755274622127,4.069,4384.1,4381.6,3.55]
[1755274622321,4.069,4384.1,4383.9,2.28107306]
[1755274622555,4.069,4384.1,4384.0,2.28102189]
[1755274622852,4.069,4384.2,4384.1,2.28096986]
[1755274623318,0.002,4385.1,4384.1,2.1221]
[1755274623519,0.002,4385.1,4382.8,3.0]
[1755274623520,4.069,4385.0,4382.8,3.0]
[1755274623833,0.55,4384.8,4382.7,2.28169764]
[1755274623994,6.81,4384.7,4382.7,2.28168062]
[1755274624195,12.41017317,4385.1,4382.5,0.4423]
[1755274624196,0.002,4385.0,4382.5,0.4423]
[1755274624395,4.095,4385.0,4384.9,2.28055371]
[1755274625036,6.823,4385.0,4383.0,0.4423]
[1755274625246,4.095,4385.0,4384.5,2.28071573]
[1755274625448,4.095,4385.0,4383.6,0.4423]
[1755274625733,4.095,4385.0,4383.0,2.28154232]
[1755274625941,0.4707,4384.9,4382.4,2.28185469]
[1755274626143,0.4707,4384.9,4382.9,0.4423]
[1755274626297,2.4085,4384.8,4382.6,2.28170588]
[1755274626497,16.39957317,4384.7,4381.5,2.28228907]
[1755274626729,16.39957317,4384.7,4381.4,0.4377]
[1755274626730,0.55,4384.3,4381.4,0.4377]
[1755274626893,6.9539,4384.2,4381.5,0.02282323]
[1755274627098,6.9539,4384.2,4381.6,2.1175]
[1755274627399,6.9539,4384.2,4381.8,3.0]
[1755274627400,4.104,4384.2,4381.8,3.0]
[1755274627614,4.104,4384.2,4384.0,2.28101443]
[1755274627902,4.104,4384.2,4382.7,2.28169849]
[1755274628095,4.104,4384.2,4382.6,0.4377]
[1755274628341,4.104,4384.2,4384.1,2.28096986]
[1755274628636,5.481,4384.6,4384.5,2.28076177]
[1755274628820,9.579,4384.6,4384.5,2.28076177]
[1755274629220,4.098,4384.6,4384.5,2.28076177]
[1755274629425,0.002,4385.1,4384.9,2.28055371]
[1755274629600,0.002,4385.1,4385.0,2.30330672]
[1755274629959,0.002,4385.1,4385.0,2.28050171]
[1755274630163,2.8519,4385.1,4383.4,2.71902522]
[1755274630322,2.8519,4385.1,4382.8,0.4377]
[1755274630531,2.8519,4385.1,4383.0,2.28154232]
[1755274630733,2.8519,4385.1,4383.5,2.28125033]
[1755274630734,0.002,4385.1,4383.5,2.28125033]
[1755274630922,4.093,4385.0,4383.5,0.46051282]
[1755274631162,4.093,4385.0,4384.9,0.1144]
[1755274631323,4.5344,4385.0,4384.9,0.1144]
[1755274631523,4.093,4385.0,4384.9,0.1144]
[1755274631937,6.9429,4385.0,4384.9,0.1144]
[1755274632837,0.002,4385.1,4384.9,0.1144]
[1755274633163,4.089,4385.0,4384.9,0.1144]
[1755274633463,6.9389,4385.0,4384.9,0.1144]
[1755274634063,0.55,4384.9,4380.9,2.28260393]
[1755274634221,2.28070057,4384.7,4384.3,0.1144]
[1755274634563,2.8499,4384.6,4383.6,2.28118367]
[1755274634727,4.088,4384.5,4382.5,3.0]
[1755274634930,0.002,4385.1,4384.5,0.1144]
[1755274635330,0.002,4385.1,4384.4,2.28076852]
[1755274635331,4.087,4385.0,4384.4,2.28076852]
[1755274635538,4.087,4385.0,4384.9,0.1144]
[1755274635980,0.002,4385.1,4384.6,0.02280709]
[1755274636144,0.002,4385.1,4385.0,2.28050171]
[1755274636469,0.002,4385.1,4382.0,2.28206089]
[1755274636771,0.002,4385.1,4383.4,0.4377]
[1755274637274,0.002,4385.1,4384.1,2.2809248]
[1755274637449,0.002,4385.1,4383.5,3.0]
[1755274637649,0.002,4385.1,4383.7,2.2811643]
[1755274637853,0.002,4385.1,4383.9,2.28107392]
[1755274638060,0.002,4385.1,4383.8,0.02281125]
[1755274638061,0.002,4385.1,4385.0,2.28050171]
[1755274638372,0.002,4385.1,4385.0,5.71820171]
[1755274638572,0.002,4385.1,4385.0,7.39800171]
[1755274638975,0.002,4386.0,4385.5,2.2802417]
[1755274639179,4.1008532,4387.1,4385.8,2.28008573]
[1755274639383,0.0208532,4387.1,4386.5,2.27972187]
[1755274639765,2.8519,4386.6,4384.4,0.4377]
[1755274640070,0.002,4386.5,4385.8,2.28003542]
[1755274640246,0.002,4386.5,4385.8,2.28004204]
[1755274640450,0.002,4386.5,4384.8,0.4377]
[1755274640655,0.4414,4386.4,4384.2,0.4377]
[1755274640984,0.4414,4386.4,4384.1,3.0]
[1755274640985,2.8499,4386.4,4384.1,3.0]
[1755274641275,0.002,4385.1,4384.7,2.28061029]
[1755274641482,0.002,4385.1,4384.5,3.0]
[1755274641643,0.002,4385.1,4385.0,2.28050171]
[1755274642254,0.002,4385.1,4385.0,5.71820171]
[1755274642446,0.002,4385.1,4385.0,7.39800171]
[1755274642841,0.002,4385.1,4385.0,5.28050171]
[1755274643377,0.002,4385.1,4384.9,3.0]
[1755274643708,0.002,4385.1,4385.0,2.28050171]
[1755274644185,0.002,4385.1,4383.4,0.4377]
[1755274644356,2.8519,4385.1,4383.7,2.281178]
[1755274644561,2.8519,4385.1,4384.2,2.28088953]
[1755274644777,2.8519,4385.1,4383.0,1.6808]
[1755274644997,0.4414,4385.0,4383.0,0.001]
[1755274645395,2.4085,4384.9,4383.0,0.001]
[1755274645718,2.28097096,4384.1,4383.0,0.001]
[1755274645929,0.1144,4383.7,4383.0,0.1154]
[1755274646073,0.55,4383.5,4382.9,0.1144]
[1755274646430,5.13127398,4383.4,4382.9,0.1144]
[1755274646708,5.13127398,4383.4,4380.5,19.94292499]
[1755274646709,0.55,4382.1,4380.5,19.94292499]
[1755274646922,0.55,4382.5,4380.5,19.94292499]
[1755274646923,0.55,4381.9,4380.5,19.94292499]
[1755274647078,6.9509,4381.8,4380.5,19.94292499]
[1755274647605,6.9509,4381.8,4380.7,2.28273673]
[1755274647910,4.098,4381.7,4380.5,19.94292499]
[1755274648107,2.8499,4381.8,4380.9,2.28262568]
[1755274648312,4.096,4381.7,4381.1,2.2825234]
[1755274648500,4.096,4381.7,4380.5,19.94292499]
[1755274648677,4.096,4381.7,4381.1,2.28247977]
[1755274649214,4.096,4381.7,4380.6,2.28279231]
[1755274649411,4.096,4381.7,4380.5,19.94292499]
[1755274649933,4.093,4382.3,4381.7,2.28217209]
[1755274650165,4.093,4382.3,4380.7,3.0]
[1755274650364,0.4414,4382.2,4380.8,2.28268809]
[1755274650660,4.093,4382.3,4380.8,0.02282688]
[1755274650814,4.093,4382.3,4382.2,2.28195883]
[1755274651014,4.093,4382.3,4382.1,2.28200604]
[1755274651209,4.087,4382.7,4382.5,2.28175355]
[1755274651472,4.087,4382.7,4381.7,3.0]
[1755274651614,4.087,4382.7,4382.4,2.28182628]
[1755274651808,4.087,4382.7,4381.1,3.0]
[1755274651809,2.8499,4382.6,4380.5,19.94292499]
[1755274652047,2.8499,4382.6,4380.6,3.0]
[1755274652363,0.55,4382.4,4380.5,19.94292499]
[1755274652515,0.4414,4382.5,4380.5,19.94292499]
[1755274652717,2.28206038,4382.1,4380.5,19.94292499]
[1755274652915,2.8499,4382.0,4380.5,19.94292499]
[1755274653256,4.5224,4381.9,4380.5,19.94292499]
[1755274653461,2.8499,4381.8,4380.5,19.94292499]
[1755274653827,2.8499,4382.7,4380.6,3.0]
[1755274654155,4.078,4382.6,4380.6,3.0]
[1755274654340,2.8499,4382.7,4380.6,3.0]
[1755274654655,0.4414,4383.3,4381.5,2.2823175]
[1755274654859,6.4905,4383.2,4380.6,3.0]
[1755274655155,0.55,4383.0,4380.6,3.0]
[1755274655312,6.9319,4382.9,4380.7,0.0228274]
[1755274655512,6.9319,4382.9,4380.6,3.0]
[1755274655712,2.8499,4382.8,4380.9,2.28258741]
[1755274655919,2.8499,4382.8,4380.6,3.0]
[1755274655920,0.4414,4382.7,4380.6,3.0]
[1755274656290,0.55,4382.5,4380.5,19.94292499]
[1755274656446,0.55,4382.3,4380.5,19.94292499]
[1755274656658,2.39648028,4382.0,4381.3,0.1144]
[1755274656967,2.9155,4381.9,4381.3,0.1144]
[1755274657117,2.28227131,4381.6,4380.5,19.94292499]
[1755274657316,12.4765,4381.5,4381.2,0.1144]
[1755274657651,5.403,4383.2,4380.5,19.94292499]
[1755274657652,5.48,4381.6,4381.4,0.1144]
[1755274657867,0.16702989,4382.8,4382.2,0.1144]
[1755274657868,2.9155,4382.3,4382.2,0.1144]
[1755274658164,5.481,4382.7,4380.8,3.0]
[1755274658472,4.082,4382.6,4381.1,3.0]
[1755274658631,5.481,4382.7,4381.2,0.4364]
[1755274658966,4.081,4382.6,4382.4,2.28182239]
[1755274659132,4.081,4382.6,4381.7,2.28219329]
[1755274659452,2.9155,4382.5,4379.9,2.28410958]
[1755274659614,0.55,4382.4,4380.4,2.28285282]
[1755274659815,5.19740676,4382.3,4380.0,2.2830573]
[1755274660039,2.9155,4382.2,4380.4,2.28288857]
[1755274660377,2.9155,4382.2,4379.9,0.001]
[1755274660378,0.4419,4382.1,4379.9,0.001]
[1755274660563,2.28216714,4381.8,4379.9,0.001]
[1755274660875,6.9985,4381.7,4380.2,2.2829901]
[1755274661063,2.2823234,4381.5,4379.9,0.001]
[1755274661272,0.55,4381.5,4379.9,0.001]
[1755274661445,3.55,4381.3,4379.9,0.001]
[1755274661752,4.68498866,4382.2,4379.9,0.001]
[1755274661753,6.9965,4381.2,4380.5,19.46892499]
[1755274661962,2.9155,4381.2,4380.5,19.46892499]
[1755274662153,4.083,4381.1,4380.5,19.46892499]
[1755274662555,2.9155,4381.9,4380.5,19.46892499]
[1755274662782,4.083,4381.8,4380.5,19.46892499]
[1755274662942,4.081,4381.7,4380.5,21.75175825]
[1755274663143,4.08,4381.6,4380.5,19.46892499]
[1755274663347,4.079,4381.5,4380.5,19.46892499]
[1755274663543,0.4419,4383.2,4380.6,0.45922792]
[1755274663748,2.4736,4383.3,4382.1,2.28200312]
[1755274663749,4.078,4382.6,4382.1,2.28200312]
[1755274663980,4.078,4382.6,4381.0,0.4364]
[1755274664154,4.078,4382.6,4381.5,2.28228379]
[1755274664473,4.078,4382.5,4381.1,3.0]
[1755274665083,4.078,4382.5,4380.2,2.71937929]
[1755274665282,2.28195439,4382.3,4380.2,0.4364]
[1755274665484,3.4655,4382.4,4379.9,0.001]
[1755274665687,0.55,4382.1,4379.9,0.001]
[1755274665872,3.55,4381.9,4379.9,0.001]
[1755274666074,0.55,4381.7,4379.9,0.001]
[1755274666362,2.2824386,4381.3,4379.9,0.001]
[1755274666597,4.075,4381.2,4379.9,2.2841133]
[1755274666761,2.4736,4381.6,4380.4,2.28288002]
[1755274666963,2.4736,4381.6,4380.1,2.28403575]
[1755274666964,4.075,4381.5,4380.1,0.001]
[1755274667190,4.074,4381.4,4380.6,2.28279231]
[1755274667385,4.073,4381.3,4380.2,0.4364]
[1755274667623,4.073,4381.2,4380.2,0.4364]
[1755274667983,2.4736,4382.3,4381.1,0.1144]
[1755274668327,4.071,4382.2,4381.1,2.28248857]
[1755274668619,4.071,4382.2,4382.1,0.1144]
[1755274668849,4.5129,4382.2,4379.9,0.001]
[1755274669033,2.28233352,4381.5,4379.9,0.001]
[1755274669322,4.621,4382.2,4379.9,0.001]
[1755274669323,6.5446,4381.4,4379.9,0.001]
[1755274669528,6.35345386,4381.3,4379.9,0.001]
[1755274669683,4.071,4381.3,4379.9,0.001]
[1755274670090,0.9919,4381.2,4379.9,0.001]
[1755274670285,3.4655,4381.2,4379.9,0.001]
[1755274670484,2.282737,4380.8,4379.9,0.001]
[1755274670705,7.9556,4380.7,4379.9,0.001]
[1755274670885,4.071,4380.6,4379.9,0.001]
[1755274671091,9.26929231,4380.6,4379.9,0.001]
[1755274671518,9.81929231,4380.6,4379.9,0.001]
[1755274672381,9.81929231,4380.6,4380.5,8.80670595]
[1755274672593,12.81929231,4380.6,4380.5,8.80670595]
[1755274673189,12.82029231,4380.6,4380.5,8.80670595]
[1755274674405,2.83310502,4380.0,4379.9,0.001]
[1755274674720,9.90510502,4380.0,4379.9,0.001]
[1755274675023,8.74860502,4380.0,4379.9,0.001]
[1755274675184,9.82060502,4380.0,4379.9,0.001]
[1755274676481,5.74860502,4380.0,4379.9,0.001]
[1755274676687,2.83310502,4380.0,4379.9,0.001]
[1755274676919,6.90510502,4380.0,4379.9,0.001]
[1755274677492,9.82060502,4380.0,4379.9,0.001]
[1755274677702,0.55,4380.0,4379.9,0.001]
[1755274677900,6.35510502,4380.0,4379.9,0.001]
[1755274678432,2.83326141,4379.7,4379.6,0.001]
[1755274678789,5.86316141,4379.7,4379.6,0.001]
[1755274679322,0.1144,4379.7,4379.6,0.001]
[1755274679521,4.072,4379.7,4379.6,0.001]
[1755274679722,6.35526141,4379.7,4379.6,0.001]
[1755274679926,4.072,4379.7,4379.6,0.001]
[1755274681291,0.16808218,4380.6,4379.6,2.7702]
[1755274681494,4.072,4380.5,4379.6,0.4374]
[1755274682318,5.482,4380.7,4379.7,2.28321967]
[1755274682519,5.65116816,4380.7,4379.6,0.4374]
[1755274682830,4.072,4380.6,4379.8,2.28320487]
[1755274683018,4.072,4380.5,4379.9,0.4364]
[1755274683331,5.482,4380.7,4379.9,0.4364]
[1755274683632,0.002,4381.7,4380.8,2.28268809]
[1755274683633,4.072,4380.9,4380.8,2.28268809]
[1755274683934,0.002,4381.7,4381.6,2.28227131]
[1755274684138,4.074,4381.7,4380.9,0.4364]
[1755274684631,4.074,4381.7,4380.3,0.4364]
[1755274684815,4.07044734,4381.6,4380.3,0.4364]
[1755274685144,0.002,4381.7,4380.4,2.3328]
[1755274685145,4.072,4381.5,4380.4,2.3328]
[1755274685295,4.072,4381.5,4380.3,0.4364]
[1755274685630,0.002,4382.6,4382.4,2.28181774]
[1755274685828,0.002,4382.6,4382.5,8.05100262]
[1755274686231,4.093,4382.6,4381.9,2.2820896]
[1755274686473,4.093,4382.6,4381.7,3.4526]
[1755274686750,4.093,4382.6,4381.5,0.4526]
[1755274687347,4.093,4382.6,4377.4,2.80778]
[1755274687348,0.55,4382.5,4379.6,0.001]
[1755274687526,0.55,4382.1,4380.2,0.4526]
[1755274687848,0.55,4382.1,4379.7,2.45]
[1755274687849,0.55,4381.7,4379.7,2.45]
[1755274688010,4.099,4381.6,4379.7,2.45]
[1755274688210,4.099,4381.6,4380.1,2.2830494]
[1755274688429,4.099,4381.6,4380.3,2.28293388]
[1755274688624,2.7489,4382.0,4379.7,2.45]
[1755274688825,0.55,4382.3,4379.8,0.4526]
[1755274689015,0.55,4382.1,4380.7,2.28269634]
[1755274689232,0.55,4382.1,4380.5,0.4526]
[1755274689433,4.091,4382.0,4381.0,2.28254017]
[1755274689630,5.483,4382.4,4381.1,0.02282531]
[1755274689831,4.09,4382.3,4381.9,0.1144]
[1755274690182,5.433,4382.4,4381.9,0.1144]
[1755274690354,4.089,4382.2,4381.9,0.1144]
[1755274690755,4.087,4382.1,4381.9,0.1144]
[1755274690970,5.433,4382.4,4382.1,2.28199142]
[1755274691259,4.084,4382.3,4382.0,0.4526]
[1755274691414,4.084,4382.3,4381.3,2.45]
[1755274691774,4.084,4382.3,4382.2,0.1144]
[1755274692055,4.08,4382.3,4382.2,0.1144]
[1755274692588,0.002,4382.6,4382.5,2.28180262]
[1755274692877,0.002,4383.1,4383.0,2.28154232]
[1755274693214,0.002,4383.1,4383.0,8.29854232]
[1755274693413,0.002,4383.1,4383.0,8.18414232]
[1755274695643,0.002,4383.1,4382.2,5.18453924]
[1755274695985,0.002,4383.1,4382.6,2.28173585]
[1755274696192,0.002,4383.1,4382.5,2.28180074]
[1755274696378,4.071,4383.0,4382.8,2.28159469]
[1755274696696,4.071,4383.0,4382.8,2.28163768]
[1755274696872,4.071,4383.0,4382.9,2.28159437]
[1755274697075,4.071,4383.0,4382.9,2.73419437]
[1755274697391,4.072,4383.1,4383.0,2.28154232]
[1755274697742,4.072,4383.1,4383.0,2.73414232]
[1755274697999,0.002,4383.1,4383.0,5.18414232]
[1755274698146,0.002,4383.1,4383.0,2.73414232]
[1755274698695,0.002,4383.1,4383.0,2.28154232]
[1755274699358,0.002,4383.1,4383.0,5.18414232]
[1755274700045,0.002,4383.1,4383.0,8.18414232]
[1755274700471,1e-08,4383.1,4383.0,8.18414232]
[1755274701219,1e-08,4383.1,4383.0,8.73414232]
[1755274701420,4.069,4385.0,4384.9,2.28055371]
[1755274701567,0.11082751,4386.5,4385.5,2.2802417]
[1755274701775,0.11082751,4386.5,4386.0,2.27998176]
[1755274702007,0.002,4386.5,4386.4,2.27977384]
[1755274702510,0.002,4386.5,4386.4,8.18237384]
[1755274702713,0.002,4386.5,4386.4,5.73237384]
[1755274702873,0.002,4386.5,4386.4,5.27977384]
[1755274703072,0.002,4386.5,4385.3,2.28034298]
[1755274703325,0.002,4386.5,4386.4,2.27977384]
[1755274703611,0.002,4386.5,4386.4,2.39337384]
[1755274703778,0.002,4386.5,4386.4,2.27977384]
[1755274703986,0.002,4386.5,4386.4,2.39337384]
[1755274704204,0.002,4386.5,4386.4,0.1136]
[1755274704867,6.8189,4386.5,4386.4,0.1136]
[1755274705342,0.002,4386.5,4386.4,0.1136]
[1755274705633,4.07,4386.5,4386.4,0.1136]
[1755274705990,6.8189,4386.5,4386.4,0.1136]
[1755274706225,6.8189,4386.5,4384.3,0.4526]
[1755274706426,6.8189,4386.5,4386.2,0.1136]
[1755274706629,6.8189,4386.5,4384.5,3.0]
[1755274706630,2.7489,4386.4,4384.5,3.0]
[1755274706923,2.7489,4386.4,4385.4,2.28028166]
[1755274707137,4.067,4386.3,4384.4,2.45]
[1755274707339,0.55,4386.1,4383.6,2.9026]
[1755274707490,0.55,4386.1,4385.3,0.1144]
[1755274707491,0.1144,4385.9,4385.3,0.1144]
[1755274707830,6.8159,4385.8,4384.1,0.02280969]
[1755274707990,4.067,4385.8,4385.7,0.1144]
[1755274708392,2.7489,4386.4,4385.7,0.1144]
[1755274708637,0.002,4386.5,4385.7,0.1144]
[1755274708638,4.067,4386.3,4385.7,0.1144]
[1755274708782,4.067,4386.3,4385.9,2.27998605]
[1755274708982,4.067,4386.3,4385.9,2.28003207]
[1755274709184,4.067,4386.3,4386.2,0.1136]
[1755274710435,0.002,4386.5,4386.2,0.1136]
[1755274710734,4.069,4386.5,4386.4,2.27977384]
[1755274710888,4.069,4386.5,4386.4,2.84597384]
[1755274711634,0.002,4386.5,4386.4,8.29597384]
[1755274711782,1e-08,4386.5,4386.4,8.29597384]
[1755274711986,1e-08,4387.1,4387.0,2.27946204]
[1755274712183,1e-08,4387.1,4387.0,2.39306204]
[1755274712488,4.066,4389.0,4388.9,2.27847524]
[1755274712729,4.066,4389.7,4388.9,0.1136]
[1755274712934,4.066,4389.7,4389.6,0.1136]
[1755274713492,5.477,4390.4,4390.1,2.27783536]
[1755274713693,5.477,4390.4,4390.3,0.1136]
[1755274713694,9.543,4390.4,4390.3,0.1136]
[1755274714030,5.477,4390.4,4389.5,2.27811665]
[1755274714238,5.477,4390.4,4390.3,0.1136]
[1755274714239,9.543,4390.4,4390.3,0.1136]
[1755274714403,12.2919,4390.4,4390.3,0.1136]
[1755274714729,5.477,4390.4,4390.3,0.1136]
[1755274714935,9.543,4390.4,4390.3,0.1136]
[1755274715231,9.541,4390.4,4390.3,0.1136]
[1755274715441,5.477,4390.4,4390.3,2.39134867]
[1755274715607,9.541,4390.4,4390.3,0.1136]
[1755274716140,12.3659,4390.4,4390.3,0.1136]
[1755274716349,12.3659,4390.4,4388.1,2.4312]
[1755274716350,12.3659,4390.4,4388.2,3.0]
[1755274716528,14.64361668,4390.4,4390.1,0.1136]
[1755274716712,2.27780055,4390.2,4390.1,0.1136]
[1755274716913,0.55,4390.1,4389.0,0.1136]
[1755274717213,6.8889,4390.0,4389.4,0.1136]
[1755274717401,4.064,4389.9,4388.7,3.0]
[1755274717851,4.064,4389.9,4389.8,0.1136]
[1755274718048,6.8889,4389.9,4389.8,0.1136]
[1755274718344,7.0025,4389.9,4389.2,0.1136]
[1755274718543,4.063,4389.8,4387.7,2.71937259]
[1755274718743,4.063,4389.8,4389.6,0.1136]
[1755274718906,2.3887,4389.7,4389.6,0.1136]
[1755274719110,6.8879,4389.7,4389.6,0.1136]
[1755274719309,2.8249,4390.3,4389.6,0.1136]
[1755274719505,4.063,4390.2,4390.1,0.1136]
[1755274720358,9.16570055,4390.2,4390.1,0.1136]
[1755274720675,0.55,4390.1,4386.7,2.4312]
[1755274720883,0.55,4390.1,4386.8,0.4403]
[1755274720884,3.55,4389.9,4386.8,0.4403]
[1755274721026,0.1136,4389.2,4388.6,0.1136]
[1755274721221,2.8249,4389.1,4388.6,0.1136]
[1755274721438,2.27857907,4388.7,4388.6,0.1136]
[1755274721655,2.27857907,4388.7,4385.4,14.64266431]
[1755274721656,2.8249,4388.7,4386.4,0.4403]
[1755274721840,2.27875778,4388.4,4388.1,0.1136]
[1755274722040,11.81479366,4388.3,4388.1,0.1136]
[1755274722266,2.8249,4388.2,4388.1,0.1136]
[1755274722569,2.8249,4388.2,4386.8,2.27956543]
[1755274722570,2.82889063,4388.1,4385.5,0.4403]
[1755274722738,2.27907063,4387.8,4387.3,0.1136]
[1755274723064,4.062,4387.7,4385.5,0.4403]
[1755274723230,4.062,4387.7,4387.1,0.001]
[1755274723231,0.1136,4387.6,4387.1,0.001]
[1755274723565,2.9385,4387.6,4387.1,0.001]
[1755274723769,2.27935813,4387.2,4387.1,0.001]
[1755274723955,4.062,4387.2,4387.1,0.001]
[1755274724264,9.16625813,4387.2,4387.1,0.001]
[1755274724471,6.8869,4387.2,4387.1,0.001]
[1755274724685,0.1136,4387.6,4387.1,0.001]
[1755274724841,4.062,4387.5,4387.1,0.1146]
[1755274725049,2.3887,4388.7,4387.2,2.8715]
[1755274725257,4.062,4388.6,4387.6,2.27914215]
[1755274725462,4.062,4388.6,4387.9,2.2789945]
[1755274725665,4.062,4388.6,4387.7,2.8715]
[1755274725864,4.062,4388.6,4388.0,2.27891417]
[1755274726182,4.062,4388.6,4388.2,2.27882528]
[1755274726470,4.062,4388.6,4387.2,3.4403]
[1755274726672,4.062,4388.6,4387.4,2.27925422]
[1755274726872,5.474,4388.9,4387.3,2.8715]
[1755274727181,4.061,4388.8,4387.4,3.4403]
[1755274727549,4.061,4388.8,4387.9,3.0]
[1755274727751,4.061,4388.7,4388.3,2.27877775]
[1755274728066,4.061,4388.6,4387.7,3.0]
[1755274728265,5.464,4388.9,4388.5,2.27868292]
[1755274728577,4.061,4388.8,4388.7,2.27857907]
[1755274728799,4.061,4388.8,4388.7,5.27857907]
[1755274729280,0.002,4390.2,4389.4,2.2782157]
[1755274729491,0.002,4390.2,4389.4,2.27821319]
[1755274729645,4.061,4390.1,4389.4,2.27821319]
[1755274729978,0.002,4390.2,4389.5,2.27815319]
[1755274730176,4.061,4390.0,4388.1,2.27888887]
[1755274730362,4.061,4390.0,4388.0,3.4403]
[1755274730363,2.8249,4389.9,4388.0,3.4403]
[1755274730545,2.8249,4389.9,4388.3,2.27875515]
[1755274730743,2.8249,4389.9,4388.4,2.27869344]
[1755274730981,0.002,4390.2,4388.1,3.0]
[1755274731284,4.061,4390.1,4388.3,3.0]
[1755274731468,4.061,4390.1,4388.4,0.4403]
[1755274731779,0.002,4390.2,4388.7,3.0]
[1755274732078,0.002,4390.2,4390.1,2.27785244]
[1755274732462,0.002,4390.2,4390.1,5.14935244]
[1755274732780,0.002,4390.2,4390.1,2.27785244]
[1755274732943,0.002,4390.2,4390.1,5.14935244]
[1755274733143,0.002,4390.2,4390.1,8.14935244]
[1755274733596,1e-08,4390.2,4390.1,8.14935244]
[1755274734888,1e-08,4390.2,4390.1,8.26295244]
[1755274735047,0.002,4391.1,4391.0,2.27738556]
[1755274735450,0.002,4391.1,4391.0,2.71768556]
[1755274735651,0.002,4391.1,4391.0,5.27738556]
[1755274736395,0.002,4391.1,4391.0,8.14888556]
[1755274736598,0.002,4391.1,4391.0,5.71768556]
[1755274736765,1e-08,4391.1,4391.0,8.14888556]
[1755274737293,1e-08,4391.1,4391.0,5.71768556]
[1755274737656,1e-08,4391.1,4391.0,5.27738556]
[1755274737889,1e-08,4391.1,4391.0,2.22030664]
[1755274738070,1e-08,4391.1,4391.0,2.27738556]
[1755274738071,4.05800001,4391.1,4391.0,2.27738556]
[1755274738609,4.05800001,4391.1,4389.8,5.4312]
[1755274738610,4.49420001,4391.1,4389.6,2.27806588]
[1755274738907,6.88290001,4391.1,4390.4,2.27768727]
[1755274739128,1e-08,4391.1,4390.0,2.27790432]
[1755274739312,1e-08,4391.1,4391.0,2.27738556]
[1755274740108,1e-08,4391.1,4389.8,5.27797577]
[1755274740309,2.8249,4391.0,4388.5,0.4403]
[1755274740520,2.8249,4391.0,4388.5,2.71896192]
[1755274740521,0.4362,4390.9,4388.5,2.71896192]
[1755274740723,2.3887,4390.8,4388.6,2.27863099]
[1755274740922,0.4362,4390.7,4388.7,0.02278579]
[1755274741109,4.056,4390.7,4389.0,2.27842333]
[1755274741420,1e-08,4391.1,4389.3,0.55]
[1755274741627,4.056,4390.9,4390.8,2.27748929]
[1755274741926,1e-08,4391.1,4391.0,2.27738556]
[1755274742230,2.8249,4392.8,4390.9,2.8715]
[1755274742398,4.056,4392.7,4391.1,3.0]
[1755274742592,4.056,4392.7,4392.6,2.27655602]
[1755274742788,4.056,4392.7,4392.4,2.27663152]
[1755274743003,4.056,4392.7,4392.6,2.27655602]
[1755274743703,4.056,4392.7,4391.8,3.0]
[1755274743903,0.4362,4393.4,4392.7,2.2765001]
[1755274744204,4.055,4393.3,4392.0,3.0]
[1755274744403,4.055,4393.3,4393.2,2.2762451]
[1755274744636,4.055,4393.3,4392.1,0.4403]
[1755274744840,4.055,4393.3,4392.4,2.27661412]
[1755274745042,4.055,4393.3,4392.6,2.27650535]
[1755274745349,4.054,4393.2,4392.0,0.4403]
[1755274745546,4.054,4393.2,4392.1,3.0]
[1755274745850,4.054,4393.2,4393.1,0.1136]
[1755274746506,5.471,4394.0,4393.1,0.1136]
[1755274746739,5.471,4394.0,4393.9,2.38948247]
[1755274746931,9.525,4394.0,4393.9,0.1136]
[1755274747441,9.525,4394.0,4393.9,2.38948247]
[1755274747745,9.525,4394.0,4393.9,0.1136]
[1755274747903,12.3315,4394.0,4391.2,2.27727351]
[1755274748108,0.55,4393.2,4391.7,2.27701473]
[1755274748320,5.8065,4393.9,4390.8,0.4515]
[1755274748321,0.55,4393.0,4390.8,0.4515]
[1755274748508,2.8065,4392.9,4390.2,2.27780055]
[1755274748823,0.55,4392.7,4390.1,3.0]
[1755274749145,2.8065,4392.6,4390.3,3.0]
[1755274749349,4.053,4392.5,4390.5,2.27764491]
[1755274749553,0.4606,4393.2,4390.7,2.82753659]
[1755274749858,4.053,4393.2,4390.9,3.0]
[1755274750009,4.053,4393.2,4391.2,0.55]
[1755274750208,4.053,4393.2,4393.1,2.27629692]
[1755274750451,4.052,4393.4,4392.5,3.0]
[1755274750654,4.052,4393.4,4392.4,0.4515]
[1755274750655,0.002,4394.2,4393.3,2.27615904]
[1755274750854,0.002,4394.2,4393.0,2.27634226]
[1755274750855,4.052,4393.4,4393.0,2.27634226]
[1755274751090,0.002,4394.2,4391.9,0.55]
[1755274751091,2.8065,4393.9,4392.2,2.27676335]
[1755274751304,0.002,4394.2,4392.4,2.27665968]
[1755274751454,4.052,4394.1,4392.6,5.27655602]
[1755274751809,4.052,4394.1,4393.6,2.27598703]
[1755274752105,0.002,4394.2,4393.0,5.27634873]
[1755274752255,0.002,4394.2,4393.2,3.0]
[1755274752451,0.002,4394.2,4393.4,3.0]
[1755274752653,0.002,4394.2,4394.1,2.27577888]